[Event "Titled Tuesday Blitz May 4 2021"]
[White "Arabidze, Meri"]
[Black "Vukovic, Zdravko"]
[WhiteFideId "13604040"]
[BlackFideId "900877"]
[WhiteElo "2432"]
[BlackElo "2499"]
[Result "1/2-1/2"]
[Round "10"]
[TimeControl "180+1"]
[Date "2021.05.04"]
[WhiteClock "0:00:13"]
[BlackClock "0:00:10"]

1. Nf3 {[%clk 0:03:00]}  e6 {[%clk 0:02:59]} 2. d4 {[%clk 0:03:00]}  d5 {[%clk 0:02:59]} 3. c4 {[%clk 0:03:00]}  Nf6 {[%clk 0:02:58]} 4. g3 {[%clk 0:03:00]}  dxc4 {[%clk 0:02:57]} 5. Bg2 {[%clk 0:03:01]}  Bb4+ {[%clk 0:02:58]} 6. Bd2 {[%clk 0:03:00]}  a5 {[%clk 0:02:58]} 7. O-O {[%clk 0:02:59]}  Nc6 {[%clk 0:02:57]} 8. Bf4 {[%clk 0:02:54]}  O-O {[%clk 0:02:42]} 9. Nc3 {[%clk 0:02:44]}  h6 {[%clk 0:02:28]} 10. Rc1 {[%clk 0:02:43]}  Nd5 {[%clk 0:02:23]} 11. Ne4 {[%clk 0:02:28]}  Nxf4 {[%clk 0:02:13]} 12. gxf4 {[%clk 0:02:29]}  b5 {[%clk 0:02:06]} 13. a4 {[%clk 0:02:26]}  Ba6 {[%clk 0:01:58]} 14. axb5 {[%clk 0:02:15]}  Bxb5 {[%clk 0:01:58]} 15. Nc3 {[%clk 0:02:15]}  Ba6 {[%clk 0:01:32]} 16. e3 {[%clk 0:02:14]}  Rb8 {[%clk 0:01:31]} 17. Nd2 {[%clk 0:02:07]}  Ne7 {[%clk 0:01:27]} 18. Re1 {[%clk 0:02:07]}  c5 {[%clk 0:01:24]} 19. Nf3 {[%clk 0:01:59]}  cxd4 {[%clk 0:01:21]} 20. Nxd4 {[%clk 0:02:00]}  Bb7 {[%clk 0:01:17]} 21. Bxb7 {[%clk 0:01:57]}  Rxb7 {[%clk 0:01:17]} 22. Qf3 {[%clk 0:01:58]}  Qc7 {[%clk 0:01:10]} 23. Red1 {[%clk 0:01:58]}  Bxc3 {[%clk 0:01:06]} 24. bxc3 {[%clk 0:01:58]}  Rb2 {[%clk 0:01:02]} 25. Ra1 {[%clk 0:01:45]}  Rfb8 {[%clk 0:01:00]} 26. Rdc1 {[%clk 0:01:16]}  e5 {[%clk 0:00:49]} 27. fxe5 {[%clk 0:01:14]}  Qxe5 {[%clk 0:00:49]} 28. Ra4 {[%clk 0:01:04]}  R8b6 {[%clk 0:00:35]} 29. Rxc4 {[%clk 0:00:56]}  Rg6+ {[%clk 0:00:29]} 30. Kh1 {[%clk 0:00:55]}  Rf6 {[%clk 0:00:29]} 31. Qa8+ {[%clk 0:00:49]}  Kh7 {[%clk 0:00:27]} 32. Nf3 {[%clk 0:00:46]}  Qh5 {[%clk 0:00:23]} 33. Qe4+ {[%clk 0:00:16]}  Ng6 {[%clk 0:00:21]} 34. Kg2 {[%clk 0:00:16]}  Rxf3 {[%clk 0:00:11]} 35. Qxf3 {[%clk 0:00:13]}  Nh4+ {[%clk 0:00:10]} 36. Rxh4 {[%clk 0:00:12]}  Qxh4 {[%clk 0:00:10]} 37. Qg3 {[%clk 0:00:12]}  Qe4+ {[%clk 0:00:10]} 38. Qf3 {[%clk 0:00:11]}  Qg6+ {[%clk 0:00:10]} 39. Qg3 {[%clk 0:00:12]}  Qe4+ {[%clk 0:00:10]} 40. Qf3 {[%clk 0:00:12]}  Qg6+ {[%clk 0:00:10]} 41. Qg3 {[%clk 0:00:13]}  Qc6+ {[%clk 0:00:10]} 42. Qf3 {[%clk 0:00:13]}  Qg6+ {[%clk 0:00:10]} 1/2-1/2


[Site "https://www.chess.com"]

[Event "Titled Tuesday Blitz May 4 2021"]
[White "Baker, Chris W"]
[Black "Lopez Gracia, Fernando"]
[WhiteFideId "401676"]
[BlackFideId "2207184"]
[WhiteElo "2236"]
[BlackElo "2311"]
[Result "1-0"]
[Round "10"]
[TimeControl "180+1"]
[Date "2021.05.04"]
[WhiteClock "0:00:19"]
[BlackClock "0:00:46"]

1. e4 {[%clk 0:03:00]}  e5 {[%clk 0:02:59]} 2. Nf3 {[%clk 0:03:00]}  Nc6 {[%clk 0:02:59]} 3. Bc4 {[%clk 0:02:59]}  Nf6 {[%clk 0:02:59]} 4. O-O {[%clk 0:02:58]}  Nxe4 {[%clk 0:02:56]} 5. d4 {[%clk 0:02:56]}  d5 {[%clk 0:02:51]} 6. Bb5 {[%clk 0:02:54]}  exd4 {[%clk 0:02:51]} 7. Nxd4 {[%clk 0:02:53]}  Bd7 {[%clk 0:02:50]} 8. Re1 {[%clk 0:02:43]}  Be7 {[%clk 0:02:49]} 9. c4 {[%clk 0:02:32]}  Nxd4 {[%clk 0:02:39]} 10. Bxd7+ {[%clk 0:02:29]}  Qxd7 {[%clk 0:02:39]} 11. Qxd4 {[%clk 0:02:28]}  Bc5 {[%clk 0:02:32]} 12. Qe5+ {[%clk 0:01:37]}  Kd8 {[%clk 0:02:25]} 13. Be3 {[%clk 0:01:29]}  Bxe3 {[%clk 0:02:21]} 14. Rxe3 {[%clk 0:01:27]}  Re8 {[%clk 0:02:17]} 15. Qxd5 {[%clk 0:01:22]}  Nf6 {[%clk 0:02:10]} 16. Rxe8+ {[%clk 0:01:16]}  Kxe8 {[%clk 0:02:10]} 17. Qxd7+ {[%clk 0:01:16]}  Kxd7 {[%clk 0:02:11]} 18. Nc3 {[%clk 0:01:16]}  c6 {[%clk 0:02:10]} 19. Re1 {[%clk 0:01:14]}  Re8 {[%clk 0:02:03]} 20. Rxe8 {[%clk 0:01:13]}  Nxe8 {[%clk 0:02:04]} 21. f3 {[%clk 0:01:13]}  Kd6 {[%clk 0:02:04]} 22. Kf2 {[%clk 0:01:10]}  Kc5 {[%clk 0:02:05]} 23. b3 {[%clk 0:01:00]}  Kb4 {[%clk 0:02:04]} 24. Nb1 {[%clk 0:00:59]}  a5 {[%clk 0:01:44]} 25. Ke3 {[%clk 0:00:53]}  a4 {[%clk 0:01:44]} 26. Nd2 {[%clk 0:00:43]}  Ka3 {[%clk 0:01:29]} 27. Kd3 {[%clk 0:00:40]}  Kxa2 {[%clk 0:01:26]} 28. bxa4 {[%clk 0:00:39]}  Ka3 {[%clk 0:01:27]} 29. a5 {[%clk 0:00:36]}  Ka4 {[%clk 0:01:27]} 30. Ne4 {[%clk 0:00:35]}  Kxa5 {[%clk 0:01:26]} 31. Ng5 {[%clk 0:00:35]}  Nd6 {[%clk 0:01:10]} 32. Nxh7 {[%clk 0:00:33]}  Kb4 {[%clk 0:01:10]} 33. Ng5 {[%clk 0:00:32]}  f6 {[%clk 0:01:10]} 34. Ne6 {[%clk 0:00:32]}  Nxc4 {[%clk 0:01:07]} 35. Nxg7 {[%clk 0:00:31]}  b5 {[%clk 0:01:08]} 36. h4 {[%clk 0:00:31]}  Ne5+ {[%clk 0:01:05]} 37. Kc2 {[%clk 0:00:30]}  Kc5 {[%clk 0:01:01]} 38. h5 {[%clk 0:00:30]}  Nf7 {[%clk 0:01:02]} 39. Nf5 {[%clk 0:00:29]}  Kd5 {[%clk 0:01:02]} 40. h6 {[%clk 0:00:29]}  Ke5 {[%clk 0:01:03]} 41. g4 {[%clk 0:00:26]}  Kf4 {[%clk 0:01:02]} 42. h7 {[%clk 0:00:26]}  Kxf3 {[%clk 0:00:58]} 43. Nd4+ {[%clk 0:00:21]}  Kxg4 {[%clk 0:00:56]} 44. Nxc6 {[%clk 0:00:21]}  Kf4 {[%clk 0:00:43]} 45. Nd4 {[%clk 0:00:20]}  Ke3 {[%clk 0:00:44]} 46. Nxb5 {[%clk 0:00:19]}  f5 {[%clk 0:00:45]} 47. Nd6 {[%clk 0:00:19]}  f4 {[%clk 0:00:46]} 48. Nxf7 {[%clk 0:00:19]} 1-0


[Site "https://www.chess.com"]

[Event "Titled Tuesday Blitz May 4 2021"]
[White "Balaji, Aaravamudhan"]
[Black "Buscar, Michael"]
[WhiteFideId "436224"]
[BlackFideId "2603616"]
[WhiteElo "2085"]
[BlackElo "2010"]
[Result "1-0"]
[Round "10"]
[TimeControl "180+1"]
[Date "2021.05.04"]
[WhiteClock "0:01:54"]
[BlackClock "0:00:12"]

1. d4 {[%clk 0:03:00]}  d5 {[%clk 0:02:58]} 2. c4 {[%clk 0:03:01]}  e6 {[%clk 0:02:58]} 3. Nc3 {[%clk 0:03:01]}  c5 {[%clk 0:02:59]} 4. cxd5 {[%clk 0:03:02]}  exd5 {[%clk 0:02:59]} 5. Nf3 {[%clk 0:03:02]}  Nc6 {[%clk 0:03:00]} 6. g3 {[%clk 0:03:02]}  Nf6 {[%clk 0:03:00]} 7. Bg2 {[%clk 0:03:02]}  Be7 {[%clk 0:03:01]} 8. O-O {[%clk 0:03:02]}  O-O {[%clk 0:03:01]} 9. Bg5 {[%clk 0:03:02]}  c4 {[%clk 0:03:02]} 10. Ne5 {[%clk 0:02:59]}  Be6 {[%clk 0:03:02]} 11. f4 {[%clk 0:02:58]}  Ng4 {[%clk 0:03:02]} 12. Bxe7 {[%clk 0:02:55]}  Nxe7 {[%clk 0:03:02]} 13. Qd2 {[%clk 0:02:55]}  Nxe5 {[%clk 0:02:56]} 14. fxe5 {[%clk 0:02:56]}  Qa5 {[%clk 0:02:45]} 15. e4 {[%clk 0:02:54]}  Rfd8 {[%clk 0:02:41]} 16. exd5 {[%clk 0:02:42]}  Nxd5 {[%clk 0:02:37]} 17. Qf2 {[%clk 0:02:41]}  Nxc3 {[%clk 0:02:34]} 18. bxc3 {[%clk 0:02:42]}  Qxc3 {[%clk 0:02:33]} 19. d5 {[%clk 0:02:42]}  Rxd5 {[%clk 0:02:27]} 20. Bxd5 {[%clk 0:02:40]}  Bxd5 {[%clk 0:02:27]} 21. Rad1 {[%clk 0:02:39]}  Qxe5 {[%clk 0:02:14]} 22. Rfe1 {[%clk 0:02:36]}  Qh5 {[%clk 0:02:11]} 23. Qd4 {[%clk 0:02:25]}  Qg6 {[%clk 0:01:03]} 24. Qxd5 {[%clk 0:02:24]}  h5 {[%clk 0:01:04]} 25. Qxb7 {[%clk 0:02:22]}  Rf8 {[%clk 0:01:01]} 26. Qxa7 {[%clk 0:02:22]}  h4 {[%clk 0:01:00]} 27. Qe3 {[%clk 0:02:18]}  h3 {[%clk 0:01:00]} 28. Qe4 {[%clk 0:02:17]}  Qa6 {[%clk 0:00:58]} 29. Qg4 {[%clk 0:02:10]}  Qb6+ {[%clk 0:00:54]} 30. Kh1 {[%clk 0:02:06]}  Qb7+ {[%clk 0:00:30]} 31. Qe4 {[%clk 0:02:06]}  Qb2 {[%clk 0:00:30]} 32. Re2 {[%clk 0:02:01]}  Qa3 {[%clk 0:00:26]} 33. Rf1 {[%clk 0:01:58]}  c3 {[%clk 0:00:23]} 34. Ref2 {[%clk 0:01:58]}  Qc5 {[%clk 0:00:19]} 35. Kg1 {[%clk 0:01:57]}  Rd8 {[%clk 0:00:12]} 36. Qh4 {[%clk 0:01:55]}  c2 {[%clk 0:00:12]} 37. Qxd8+ {[%clk 0:01:54]} 1-0


[Site "https://www.chess.com"]

[Event "Titled Tuesday Blitz May 4 2021"]
[White "Bartel, Michal"]
[Black "Begunov, Konstantin"]
[WhiteFideId "1119257"]
[BlackFideId "4118510"]
[WhiteElo "2271"]
[BlackElo "2262"]
[Result "1/2-1/2"]
[Round "10"]
[TimeControl "180+1"]
[Date "2021.05.04"]
[WhiteClock "0:00:06"]
[BlackClock "0:00:22"]

1. e4 {[%clk 0:03:00]}  c5 {[%clk 0:02:59]} 2. Ne2 {[%clk 0:03:00]}  d6 {[%clk 0:02:59]} 3. g3 {[%clk 0:03:00]}  Nc6 {[%clk 0:02:58]} 4. Bg2 {[%clk 0:03:01]}  g6 {[%clk 0:02:59]} 5. c3 {[%clk 0:03:02]}  Bg7 {[%clk 0:02:59]} 6. d4 {[%clk 0:03:02]}  cxd4 {[%clk 0:02:59]} 7. cxd4 {[%clk 0:03:03]}  e6 {[%clk 0:02:59]} 8. Nbc3 {[%clk 0:03:04]}  Nge7 {[%clk 0:02:59]} 9. O-O {[%clk 0:03:04]}  O-O {[%clk 0:02:59]} 10. Be3 {[%clk 0:03:04]}  b6 {[%clk 0:03:00]} 11. Rc1 {[%clk 0:03:04]}  Ba6 {[%clk 0:03:00]} 12. Qd2 {[%clk 0:03:03]}  Rc8 {[%clk 0:02:59]} 13. b3 {[%clk 0:03:03]}  d5 {[%clk 0:02:54]} 14. e5 {[%clk 0:03:01]}  Nf5 {[%clk 0:02:48]} 15. g4 {[%clk 0:03:01]}  Nxe3 {[%clk 0:02:43]} 16. fxe3 {[%clk 0:03:02]}  f6 {[%clk 0:02:42]} 17. exf6 {[%clk 0:03:00]}  Rxf6 {[%clk 0:02:37]} 18. Rxf6 {[%clk 0:02:58]}  Qxf6 {[%clk 0:02:35]} 19. Nf4 {[%clk 0:02:57]}  Nxd4 {[%clk 0:02:13]} 20. Kh1 {[%clk 0:01:23]}  Nxb3 {[%clk 0:01:49]} 21. axb3 {[%clk 0:01:22]}  Rxc3 {[%clk 0:01:48]} 22. Rxc3 {[%clk 0:01:20]}  Qxc3 {[%clk 0:01:49]} 23. Qxc3 {[%clk 0:01:21]}  Bxc3 {[%clk 0:01:50]} 24. Nxe6 {[%clk 0:01:22]}  Be2 {[%clk 0:00:33]} 25. h3 {[%clk 0:01:21]}  Bd2 {[%clk 0:00:20]} 26. Bxd5 {[%clk 0:01:19]}  Bxe3 {[%clk 0:00:19]} 27. Nf4+ {[%clk 0:01:17]}  Kg7 {[%clk 0:00:17]} 28. Nxe2 {[%clk 0:01:17]}  Kf6 {[%clk 0:00:17]} 29. Kg2 {[%clk 0:01:16]}  Ke5 {[%clk 0:00:18]} 30. Kf3 {[%clk 0:01:15]}  Bd2 {[%clk 0:00:16]} 31. Bg8 {[%clk 0:01:15]}  h5 {[%clk 0:00:16]} 32. gxh5 {[%clk 0:01:13]}  gxh5 {[%clk 0:00:17]} 33. Bf7 {[%clk 0:01:10]}  h4 {[%clk 0:00:17]} 34. Kg4 {[%clk 0:01:11]}  Be1 {[%clk 0:00:17]} 35. Nf4 {[%clk 0:01:09]}  a5 {[%clk 0:00:16]} 36. Ng2 {[%clk 0:01:09]}  Bf2 {[%clk 0:00:15]} 37. Nxh4 {[%clk 0:01:06]}  b5 {[%clk 0:00:15]} 38. Nf3+ {[%clk 0:01:01]}  Kf6 {[%clk 0:00:12]} 39. Be8 {[%clk 0:01:00]}  a4 {[%clk 0:00:10]} 40. bxa4 {[%clk 0:00:59]}  bxa4 {[%clk 0:00:11]} 41. Bxa4 {[%clk 0:01:00]}  Kg6 {[%clk 0:00:11]} 42. Bb3 {[%clk 0:00:59]}  Kh7 {[%clk 0:00:10]} 43. Ng5+ {[%clk 0:00:56]}  Kg6 {[%clk 0:00:10]} 44. Bc2+ {[%clk 0:00:56]}  Kh6 {[%clk 0:00:11]} 45. Ne4 {[%clk 0:00:55]}  Be1 {[%clk 0:00:09]} 46. h4 {[%clk 0:00:53]}  Bxh4 {[%clk 0:00:07]} 47. Kxh4 {[%clk 0:00:54]}  Kg6 {[%clk 0:00:07]} 48. Kg4 {[%clk 0:00:54]}  Kh6 {[%clk 0:00:07]} 49. Kf5 {[%clk 0:00:52]}  Kg7 {[%clk 0:00:08]} 50. Bb3 {[%clk 0:00:51]}  Kh7 {[%clk 0:00:09]} 51. Kf6 {[%clk 0:00:50]}  Kh8 {[%clk 0:00:09]} 52. Bf7 {[%clk 0:00:44]}  Kh7 {[%clk 0:00:09]} 53. Nd6 {[%clk 0:00:44]}  Kh8 {[%clk 0:00:10]} 54. Nf5 {[%clk 0:00:43]}  Kh7 {[%clk 0:00:11]} 55. Ne7 {[%clk 0:00:42]}  Kh8 {[%clk 0:00:12]} 56. Ng6+ {[%clk 0:00:42]}  Kh7 {[%clk 0:00:12]} 57. Bd5 {[%clk 0:00:42]}  Kh6 {[%clk 0:00:12]} 58. Bg8 {[%clk 0:00:43]}  Kh5 {[%clk 0:00:12]} 59. Ne5 {[%clk 0:00:43]}  Kh4 {[%clk 0:00:13]} 60. Kf5 {[%clk 0:00:43]}  Kg3 {[%clk 0:00:13]} 61. Ke4 {[%clk 0:00:40]}  Kf2 {[%clk 0:00:14]} 62. Bc4 {[%clk 0:00:40]}  Ke1 {[%clk 0:00:14]} 63. Kd3 {[%clk 0:00:34]}  Kd1 {[%clk 0:00:14]} 64. Kc3 {[%clk 0:00:29]}  Kc1 {[%clk 0:00:15]} 65. Ba2 {[%clk 0:00:19]}  Kd1 {[%clk 0:00:15]} 66. Kd3 {[%clk 0:00:11]}  Kc1 {[%clk 0:00:16]} 67. Nf3 {[%clk 0:00:10]}  Kb2 {[%clk 0:00:17]} 68. Bc4 {[%clk 0:00:09]}  Ka1 {[%clk 0:00:18]} 69. Nd4 {[%clk 0:00:09]}  Kb2 {[%clk 0:00:18]} 70. Kd2 {[%clk 0:00:09]}  Ka1 {[%clk 0:00:18]} 71. Kc3 {[%clk 0:00:10]}  Kb1 {[%clk 0:00:18]} 72. Nc2 {[%clk 0:00:10]}  Kc1 {[%clk 0:00:18]} 73. Ba2 {[%clk 0:00:11]}  Kd1 {[%clk 0:00:18]} 74. Nd4 {[%clk 0:00:11]}  Ke1 {[%clk 0:00:18]} 75. Kd3 {[%clk 0:00:09]}  Kf2 {[%clk 0:00:19]} 76. Bd5 {[%clk 0:00:07]}  Kg3 {[%clk 0:00:19]} 77. Ke4 {[%clk 0:00:08]}  Kg4 {[%clk 0:00:19]} 78. Be6+ {[%clk 0:00:08]}  Kg5 {[%clk 0:00:20]} 79. Ke5 {[%clk 0:00:08]}  Kg6 {[%clk 0:00:21]} 80. Nf5 {[%clk 0:00:07]}  Kh7 {[%clk 0:00:20]} 81. Kf6 {[%clk 0:00:06]}  Kh8 {[%clk 0:00:21]} 82. Ne7 {[%clk 0:00:05]}  Kh7 {[%clk 0:00:22]} 83. Ng6 {[%clk 0:00:05]}  Kh6 {[%clk 0:00:22]} 84. Bg8 {[%clk 0:00:05]}  Kh5 {[%clk 0:00:22]} 85. Kf5 {[%clk 0:00:04]}  Kh6 {[%clk 0:00:22]} 86. Ne5 {[%clk 0:00:05]}  Kg7 {[%clk 0:00:22]} 87. Bd5 {[%clk 0:00:05]}  Kh8 {[%clk 0:00:22]} 88. Kf6 {[%clk 0:00:05]}  Kh7 {[%clk 0:00:22]} 89. Ng6 {[%clk 0:00:06]}  Kh6 {[%clk 0:00:22]} 90. Bg8 {[%clk 0:00:06]} 1/2-1/2


[Site "https://www.chess.com"]

[Event "Titled Tuesday Blitz May 4 2021"]
[White "Bendayan Claros, Aaron"]
[Black "Mikhalsky, Vladimir"]
[WhiteFideId "3803392"]
[BlackFideId "14144352"]
[WhiteElo "2166"]
[BlackElo "2280"]
[Result "0-1"]
[Round "10"]
[TimeControl "180+1"]
[Date "2021.05.04"]
[WhiteClock "0:00:04"]
[BlackClock "0:01:11"]

1. d4 {[%clk 0:03:00]}  g6 {[%clk 0:02:58]} 2. c4 {[%clk 0:02:59]}  Bg7 {[%clk 0:02:58]} 3. Nc3 {[%clk 0:02:59]}  Nf6 {[%clk 0:02:58]} 4. e4 {[%clk 0:02:58]}  O-O {[%clk 0:02:58]} 5. f3 {[%clk 0:02:58]}  d6 {[%clk 0:02:58]} 6. Be3 {[%clk 0:02:57]}  Nc6 {[%clk 0:02:59]} 7. Nge2 {[%clk 0:02:56]}  a6 {[%clk 0:02:58]} 8. Qd2 {[%clk 0:02:55]}  Re8 {[%clk 0:02:57]} 9. Rc1 {[%clk 0:02:54]}  Bd7 {[%clk 0:02:53]} 10. g3 {[%clk 0:02:52]}  b5 {[%clk 0:02:51]} 11. b3 {[%clk 0:02:36]}  bxc4 {[%clk 0:02:48]} 12. bxc4 {[%clk 0:02:36]}  Na5 {[%clk 0:02:40]} 13. Nd5 {[%clk 0:02:22]}  c6 {[%clk 0:02:25]} 14. Nxf6+ {[%clk 0:02:10]}  exf6 {[%clk 0:02:25]} 15. Bg2 {[%clk 0:01:53]}  d5 {[%clk 0:02:25]} 16. cxd5 {[%clk 0:01:44]}  cxd5 {[%clk 0:02:25]} 17. exd5 {[%clk 0:01:33]}  Bb5 {[%clk 0:02:22]} 18. f4 {[%clk 0:01:17]}  Nc4 {[%clk 0:02:16]} 19. Rxc4 {[%clk 0:01:16]}  Bxc4 {[%clk 0:02:16]} 20. Nc3 {[%clk 0:01:16]}  Ra7 {[%clk 0:01:58]} 21. Kf2 {[%clk 0:01:15]}  Rae7 {[%clk 0:01:53]} 22. Re1 {[%clk 0:01:13]}  f5 {[%clk 0:01:53]} 23. Bf3 {[%clk 0:01:13]}  Qb6 {[%clk 0:01:51]} 24. Na4 {[%clk 0:01:05]}  Qb5 {[%clk 0:01:48]} 25. Nc5 {[%clk 0:01:02]}  Rxe3 {[%clk 0:01:25]} 26. Rxe3 {[%clk 0:00:59]}  Rxe3 {[%clk 0:01:24]} 27. Kxe3 {[%clk 0:00:42]}  Qb1 {[%clk 0:01:24]} 28. Be2 {[%clk 0:00:14]}  Qg1+ {[%clk 0:01:20]} 29. Kf3 {[%clk 0:00:14]}  Bxd5+ {[%clk 0:01:17]} 30. Ne4 {[%clk 0:00:04]}  Bxe4# {[%clk 0:01:11]} 0-1


[Site "https://www.chess.com"]

[Event "Titled Tuesday Blitz May 4 2021"]
[White "Bommini, Mounika Akshaya"]
[Black "Prraneeth Vuppala"]
[WhiteFideId "25019872"]
[BlackFideId "46622373"]
[WhiteElo "1610"]
[BlackElo "1759"]
[Result "0-1"]
[Round "10"]
[TimeControl "180+1"]
[Date "2021.05.04"]
[WhiteClock "0:02:16"]
[BlackClock "0:02:37"]

1. d4 {[%clk 0:03:00]}  d5 {[%clk 0:02:58]} 2. c4 {[%clk 0:03:00]}  c6 {[%clk 0:02:57]} 3. Nc3 {[%clk 0:02:58]}  Nf6 {[%clk 0:02:57]} 4. cxd5 {[%clk 0:02:58]}  cxd5 {[%clk 0:02:57]} 5. Bf4 {[%clk 0:02:59]}  Nc6 {[%clk 0:02:57]} 6. e3 {[%clk 0:02:58]}  a6 {[%clk 0:02:56]} 7. Bd3 {[%clk 0:02:57]}  Bg4 {[%clk 0:02:56]} 8. Nge2 {[%clk 0:02:52]}  e6 {[%clk 0:02:56]} 9. f3 {[%clk 0:02:49]}  Bh5 {[%clk 0:02:55]} 10. O-O {[%clk 0:02:49]}  Bd6 {[%clk 0:02:55]} 11. Rc1 {[%clk 0:02:33]}  O-O {[%clk 0:02:49]} 12. Qe1 {[%clk 0:02:27]}  Bg6 {[%clk 0:02:39]} 13. g4 {[%clk 0:02:16]}  Bxd3 {[%clk 0:02:37]} 0-1


[Site "https://www.chess.com"]

[Event "Titled Tuesday Blitz May 4 2021"]
[White "Budrewicz, Krzysztof"]
[Black "Weetik, Vjacheslav"]
[WhiteFideId "1127950"]
[BlackFideId "4153472"]
[WhiteElo "2276"]
[BlackElo "2469"]
[Result "0-1"]
[Round "10"]
[TimeControl "180+1"]
[Date "2021.05.04"]
[WhiteClock "0:00:11"]
[BlackClock "0:00:18"]

1. d4 {[%clk 0:03:00]}  d5 {[%clk 0:02:55]} 2. c4 {[%clk 0:03:01]}  e6 {[%clk 0:02:54]} 3. Nc3 {[%clk 0:03:00]}  c6 {[%clk 0:02:54]} 4. e4 {[%clk 0:02:59]}  dxe4 {[%clk 0:02:54]} 5. Nxe4 {[%clk 0:02:59]}  Bb4+ {[%clk 0:02:55]} 6. Nc3 {[%clk 0:02:56]}  c5 {[%clk 0:02:54]} 7. a3 {[%clk 0:02:49]}  Bxc3+ {[%clk 0:02:53]} 8. bxc3 {[%clk 0:02:49]}  Nf6 {[%clk 0:02:53]} 9. Nf3 {[%clk 0:02:49]}  b6 {[%clk 0:02:37]} 10. Bd3 {[%clk 0:02:48]}  Bb7 {[%clk 0:02:34]} 11. O-O {[%clk 0:02:48]}  O-O {[%clk 0:02:32]} 12. Bg5 {[%clk 0:02:48]}  Nbd7 {[%clk 0:02:31]} 13. Re1 {[%clk 0:02:47]}  Qc7 {[%clk 0:02:28]} 14. Qe2 {[%clk 0:02:42]}  h6 {[%clk 0:02:19]} 15. Bh4 {[%clk 0:02:42]}  Nh5 {[%clk 0:02:17]} 16. g3 {[%clk 0:02:25]}  Qc6 {[%clk 0:02:02]} 17. d5 {[%clk 0:02:00]}  exd5 {[%clk 0:02:00]} 18. Nd2 {[%clk 0:01:30]}  Nhf6 {[%clk 0:01:50]} 19. f3 {[%clk 0:01:23]}  g5 {[%clk 0:01:44]} 20. cxd5 {[%clk 0:01:22]}  Qxd5 {[%clk 0:01:22]} 21. Bc4 {[%clk 0:01:21]}  Qd6 {[%clk 0:01:06]} 22. Bxg5 {[%clk 0:00:52]}  hxg5 {[%clk 0:01:06]} 23. Qe3 {[%clk 0:00:52]}  Nh7 {[%clk 0:00:54]} 24. Rad1 {[%clk 0:00:52]}  Qg6 {[%clk 0:00:47]} 25. Qe7 {[%clk 0:00:47]}  Nhf6 {[%clk 0:00:40]} 26. Qd6 {[%clk 0:00:32]}  Rae8 {[%clk 0:00:35]} 27. Ne4 {[%clk 0:00:26]}  Bxe4 {[%clk 0:00:32]} 28. fxe4 {[%clk 0:00:26]}  Ne5 {[%clk 0:00:29]} 29. Be2 {[%clk 0:00:12]}  Nxe4 {[%clk 0:00:19]} 30. Qd7 {[%clk 0:00:11]}  Nxd7 {[%clk 0:00:18]} 0-1


[Site "https://www.chess.com"]

[Event "Titled Tuesday Blitz May 4 2021"]
[White "Buksa, Nataliya"]
[Black "Csonka, Balazs"]
[WhiteFideId "14123622"]
[BlackFideId "742910"]
[WhiteElo "2214"]
[BlackElo "2404"]
[Result "0-1"]
[Round "10"]
[TimeControl "180+1"]
[Date "2021.05.04"]
[WhiteClock "0:00:02"]
[BlackClock "0:00:10"]

1. d4 {[%clk 0:02:58]}  d5 {[%clk 0:02:58]} 2. Nc3 {[%clk 0:02:59]}  c6 {[%clk 0:02:58]} 3. Bf4 {[%clk 0:02:59]}  Bf5 {[%clk 0:02:58]} 4. e3 {[%clk 0:02:59]}  e6 {[%clk 0:02:58]} 5. Nf3 {[%clk 0:02:59]}  Bd6 {[%clk 0:02:57]} 6. Ne5 {[%clk 0:03:00]}  f6 {[%clk 0:02:50]} 7. Nd3 {[%clk 0:02:53]}  Ne7 {[%clk 0:02:45]} 8. Be2 {[%clk 0:02:39]}  O-O {[%clk 0:02:38]} 9. g4 {[%clk 0:02:36]}  Bxd3 {[%clk 0:02:34]} 10. Bxd3 {[%clk 0:02:36]}  e5 {[%clk 0:02:18]} 11. Bg3 {[%clk 0:02:36]}  e4 {[%clk 0:02:17]} 12. Be2 {[%clk 0:02:36]}  f5 {[%clk 0:02:16]} 13. gxf5 {[%clk 0:02:30]}  Nxf5 {[%clk 0:02:14]} 14. Bg4 {[%clk 0:02:20]}  Na6 {[%clk 0:01:41]} 15. Bxf5 {[%clk 0:02:05]}  Rxf5 {[%clk 0:01:42]} 16. Qg4 {[%clk 0:02:05]}  Rf7 {[%clk 0:01:41]} 17. O-O-O {[%clk 0:02:02]}  Qd7 {[%clk 0:01:36]} 18. Qh4 {[%clk 0:01:29]}  Raf8 {[%clk 0:01:34]} 19. Rdg1 {[%clk 0:01:26]}  Nc7 {[%clk 0:01:32]} 20. Ne2 {[%clk 0:01:25]}  Ne6 {[%clk 0:01:29]} 21. Rg2 {[%clk 0:01:14]}  h6 {[%clk 0:00:58]} 22. Rhg1 {[%clk 0:00:57]}  Ng5 {[%clk 0:00:53]} 23. Bxd6 {[%clk 0:00:38]}  Qxd6 {[%clk 0:00:54]} 24. Rxg5 {[%clk 0:00:28]}  hxg5 {[%clk 0:00:53]} 25. Rxg5 {[%clk 0:00:28]}  Rxf2 {[%clk 0:00:45]} 26. Ng3 {[%clk 0:00:10]}  Qb4 {[%clk 0:00:33]} 27. Rxg7+ {[%clk 0:00:05]}  Kxg7 {[%clk 0:00:33]} 28. Nh5+ {[%clk 0:00:06]}  Kg6 {[%clk 0:00:19]} 29. Qg4+ {[%clk 0:00:05]}  Kh6 {[%clk 0:00:18]} 30. Qg7+ {[%clk 0:00:03]}  Kxh5 {[%clk 0:00:18]} 31. Qh7+ {[%clk 0:00:04]}  Kg4 {[%clk 0:00:18]} 32. Qg6+ {[%clk 0:00:04]}  Kf3 {[%clk 0:00:16]} 33. Qg3+ {[%clk 0:00:04]}  Ke2 {[%clk 0:00:15]} 34. Qg4+ {[%clk 0:00:04]}  R8f3 {[%clk 0:00:15]} 35. b3 {[%clk 0:00:02]}  Qa3+ {[%clk 0:00:09]} 36. Kb1 {[%clk 0:00:02]}  Rf1# {[%clk 0:00:10]} 0-1


[Site "https://www.chess.com"]